lending/lending_fUSD_20250719
["ID","MTS","AMOUNT","RATE_DAILY","PERIOD"]
[373332637,1752949396248,-480.0,0.00019178,2]
[373332638,1752949396269,-463.3,0.00019178,2]
[373332639,1752949396291,-460.0,0.00019178,2]
[373332640,1752949396313,-480.0,0.00019178,2]
[373332641,1752949396335,-651.01,0.00019178,2]
[373332642,1752949396358,-460.0,0.00019178,2]
[373332643,1752949396380,-480.0,0.00019178,2]
[373332644,1752949396401,-480.0,0.00019178,2]
[373332645,1752949396424,-460.0,0.00019178,2]
[373332646,1752949396446,-480.0,0.00019178,2]
[373332647,1752949396467,-15962.57,0.00019178,2]
[373332648,1752949396489,-480.0,0.00019178,2]
[373332649,1752949396510,-822.27,0.00019178,2]
[373332650,1752949396530,-460.0,0.00019178,2]
[373332651,1752949396551,-480.0,0.00019178,2]
[373332652,1752949396571,-480.0,0.00019178,2]
[373332653,1752949396593,-460.0,0.00019178,2]
[373332654,1752949396614,-362.98967301,0.00019178,2]
[373332655,1752949442805,-156.56032699,0.00019178,2]
[373332656,1752949442830,-480.0,0.00019178,2]
[373332657,1752949442853,-480.0,0.00019178,2]
[373332658,1752949442875,-2320.03,0.00019178,2]
[373332659,1752949442898,-602.32,0.00019178,2]
[373332660,1752949442920,-480.0,0.00019178,2]
[373332661,1752949442942,-790.01,0.00019178,2]
[373332662,1752949442965,-480.0,0.00019178,2]
[373332663,1752949442987,-460.0,0.00019178,2]
[373332664,1752949443010,-480.0,0.00019178,2]
[373332665,1752949443032,-480.0,0.00019178,2]
[373332666,1752949443055,-480.0,0.00019178,2]
[373332667,1752949443078,-480.0,0.00019178,2]
[373332668,1752949443101,-480.0,0.00019178,2]
[373332669,1752949443124,-480.0,0.00019178,2]
[373332670,1752949443148,-926.37,0.00019178,2]
[373332671,1752949443172,-638.67,0.00019178,2]
[373332672,1752949443206,-480.0,0.00019178,2]
[373332673,1752949443232,-460.0,0.00019178,2]
[373332674,1752949443257,-460.0,0.00019178,2]
[373332675,1752949443284,-480.0,0.00019178,2]
[373332676,1752949443308,-480.0,0.00019178,2]
[373332677,1752949443332,-679.23,0.00019178,2]
[373332678,1752949443356,-717.64,0.00019178,2]
[373332679,1752949443379,-480.0,0.00019178,2]
[373332680,1752949443408,-500.0,0.00019178,2]
[373332681,1752949443432,-966.16,0.00019178,2]
[373332682,1752949443457,-480.0,0.00019178,2]
[373332683,1752949443482,-484.23,0.00019178,2]
[373332684,1752949443506,-480.0,0.00019178,2]
[373332685,1752949443531,-1005.11,0.00019178,2]
[373332686,1752949443557,-2615.41,0.00019178,2]
[373332687,1752949443581,-480.0,0.00019178,2]
[373332688,1752949443605,-460.0,0.00019178,2]
[373332689,1752949443630,-480.0,0.00019178,2]
[373332690,1752949443654,-480.0,0.00019178,2]
[373332691,1752949443681,-460.0,0.00019178,2]
[373332692,1752949443706,-480.0,0.00019178,2]
[373332693,1752949443729,-480.0,0.00019178,2]
[373332694,1752949443760,-480.0,0.00019178,2]
[373332695,1752949443787,-480.0,0.00019178,2]
[373332696,1752949443812,-1507.51,0.00019178,2]
[373332697,1752949443839,-704.18,0.00019178,2]
[373332698,1752949443865,-1307.22,0.00019178,2]
[373332699,1752949443889,-673.91,0.00019178,2]
[373332700,1752949443912,-480.0,0.00019178,2]
[373332701,1752949443935,-480.0,0.00019178,2]
[373332702,1752949443960,-480.0,0.00019178,2]
[373332703,1752949443984,-480.0,0.00019178,2]
[373332704,1752949444007,-460.0,0.00019178,2]
[373332705,1752949444030,-704.7,0.00019178,2]
[373332706,1752949444055,-480.0,0.00019178,2]
[373332707,1752949444082,-1490.34,0.00019178,2]
[373332708,1752949444107,-460.0,0.00019178,2]
[373332709,1752949444133,-676.79,0.00019178,2]
[373332710,1752949444159,-1467.15,0.00019178,2]
[373332711,1752949444187,-480.0,0.00019178,2]
[373332712,1752949444212,-460.0,0.00019178,2]
[373332713,1752949444237,-480.0,0.00019178,2]
[373332714,1752949444262,-460.0,0.00019178,2]
[373332715,1752949444287,-480.0,0.00019178,2]
[373332716,1752949444313,-480.0,0.00019178,2]
[373332717,1752949444337,-480.0,0.00019178,2]
[373332718,1752949444363,-480.0,0.00019178,2]
[373332719,1752949444387,-497.74,0.00019178,2]
[373332720,1752949444411,-480.0,0.00019178,2]
[373332721,1752949444435,-606.11,0.00019178,2]
[373332722,1752949444458,-480.0,0.00019178,2]
[373332723,1752949444482,-1665.43,0.00019178,2]
[373332724,1752949444504,-480.0,0.00019178,2]
[373332725,1752949444527,-480.0,0.00019178,2]
[373332726,1752949444550,-480.0,0.00019178,2]
[373332727,1752949444573,-480.0,0.00019178,2]
[373332728,1752949444599,-6147.75,0.00019178,2]
[373332729,1752949444622,-480.0,0.00019178,2]
[373332730,1752949444648,-1086.76,0.00019178,2]
[373332731,1752949444674,-480.0,0.00019178,2]
[373332732,1752949444698,-563.82,0.00019178,2]
[373332733,1752949444721,-754.68,0.00019178,2]
[373332734,1752949444745,-480.0,0.00019178,2]
[373332735,1752949444779,-556.7,0.00019178,2]
[373332736,1752949444804,-460.0,0.00019178,2]
[373332737,1752949444827,-480.0,0.00019178,2]
[373332738,1752949444851,-480.0,0.00019178,2]
[373332739,1752949444875,-811.53,0.00019178,2]
[373332740,1752949444899,-480.0,0.00019178,2]
[373332741,1752949444922,-748.21,0.00019178,2]
[373332742,1752949444946,-565.26394394,0.00019178,2]
[373332743,1752949444969,-480.0,0.00019178,2]
[373332744,1752949444993,-1850.14,0.00019178,2]
[373332745,1752949445016,-480.0,0.00019178,2]
[373332746,1752949445041,-480.0,0.00019178,2]
[373332747,1752949445064,-480.0,0.00019178,2]
[373332748,1752949445089,-480.0,0.00019178,2]
[373332749,1752949445115,-1142.48,0.00019178,2]
[373332750,1752949445139,-51.84572907,0.00019178,2]
[373332751,1752949511263,-283.1,0.00017,2]
[373332752,1752949609099,-216.0083164,0.00016999,2]
[373332753,1752949609124,-34530.9916836,0.00017,2]
[373332754,1752949707511,1000.0,0.00023,30]
[373332756,1752949720314,1439.999999,0.000151,2]
[373332757,1752949747327,9000.0,0.00023,30]
[373332767,1752949832169,-4626.21164298,0.00016873,2]
[373332768,1752949832179,-500.0,0.00016899,2]
[373332769,1752949832189,-500.0,0.00016973,2]
[373332770,1752949832198,-162.17806314,0.00016973,2]
[373332771,1752949832207,-220.9,0.0001699,2]
[373332772,1752949832217,-300.0,0.00016999,2]
[373332773,1752949832227,-1200.0,0.00016999,2]
[373332774,1752949832236,-9153.29268758,0.00017,2]
[373332775,1752949832247,-2294.32672908,0.00017,2]
[373332776,1752949832259,-2876.99184633,0.00017,2]
[373332777,1752949832290,-521.97163673,0.00017,2]
[373332778,1752949832302,-7003.10948121,0.00017,2]
[373332787,1752949836676,-2.4891015,0.00017,2]
[373332788,1752949836702,-184308.62050916,0.00017,2]
[373332789,1752949836713,-1633.12041322,0.00017,2]
[373332790,1752949837010,-5000.0,0.00017,2]
[373332793,1752949838088,-985.31816317,0.00017,2]
[373332794,1752949838248,-448.33861868,0.00017,2]
[373332795,1752949838260,-6492.9931435,0.00017,2]
[373332796,1752949838307,-2942.51399375,0.00017,2]
[373332799,1752949840385,-732.7791961,0.00017,2]
[373332800,1752949840397,-2772.27379736,0.00017,2]
[373332801,1752949840409,-489.03549984,0.00017,2]
[373332802,1752949840421,-11416.03672423,0.00017,2]
[373332816,1752949841578,250.0,0.00015,2]
[373332821,1752949843104,-526.18426584,0.00017,2]
[373332822,1752949843424,-222267.04213847,0.00017,2]
[373332823,1752949843433,-170.78211511,0.00017,2]
[373332824,1752949843443,-155.57458372,0.000171,2]
[373332825,1752949843452,-153.2556658,0.000172,2]
[373332826,1752949843462,-575.25675372,0.000174,2]
[373332827,1752949843471,-155.57458364,0.00017454,2]
[373332828,1752949843481,-1758.74,0.0001746,2]
[373332829,1752949843490,-150.0,0.000175,2]
[373332830,1752949843499,-150.0,0.00017532,2]
[373332831,1752949843509,-150.0,0.00017532,2]
[373332832,1752949843519,-150.0,0.00017532,2]
[373332833,1752949843528,-150.0,0.00017532,2]
[373332834,1752949843538,-150.0,0.00017532,2]
[373332835,1752949843547,-150.0,0.00017532,2]
[373332836,1752949843556,-150.0,0.00017532,2]
[373332837,1752949843566,-150.0,0.00017532,2]
[373332838,1752949843576,-152.27,0.00017634,2]
[373332839,1752949843586,-150.0,0.00017671,2]
[373332840,1752949843595,-152.27,0.00017722,2]
[373332841,1752949843604,-575.25675372,0.00017745,2]
[373332842,1752949843614,-155.57458364,0.00017807,2]
[373332843,1752949843623,-150.0,0.0001781,2]
[373332844,1752949843633,-150.0,0.0001781,2]
[373332845,1752949843642,-152.27,0.00017811,2]
[373332846,1752949843651,-1076.82,0.00017834,2]
[373332847,1752949843661,-200.88074051,0.000179,2]
[373332848,1752949843670,-210.65,0.00017917,2]
[373332849,1752949843679,-150.0,0.00017921,2]
[373332850,1752949843690,-150.0,0.00017921,2]
[373332851,1752949843701,-150.0,0.00017949,2]
[373332852,1752949843712,-200.88074046,0.0001805,2]
[373332853,1752949843722,-150.0,0.00018088,2]
[373332854,1752949843732,-150.0,0.00018088,2]
[373332855,1752949843742,-575.25675372,0.00018089,2]
[373332856,1752949843751,-155.57458364,0.00018161,2]
[373332857,1752949843760,-200.88074046,0.000182,2]
[373332858,1752949843769,-150.0,0.00018227,2]
[373332859,1752949843779,-600.0,0.00018234,2]
[373332860,1752949843787,-600.0,0.00018234,2]
[373332861,1752949843797,-423.08,0.00018234,2]
[373332863,1752949843807,-150.0,0.00018311,2]
[373332865,1752949843816,-150.0,0.00018311,2]
[373332866,1752949843884,-184.72,0.00018329,2]
[373332867,1752949843893,-666.0,0.00018335,2]
[373332868,1752949843903,-200.88074046,0.0001835,2]
[373332869,1752949843912,-150.0,0.00018366,2]
[373332870,1752949843922,-150.0,0.00018366,2]
[373332871,1752949843932,-575.25675372,0.00018434,2]
[373332872,1752949843941,-200.88074046,0.000185,2]
[373332873,1752949843950,-150.0,0.00018505,2]
[373332874,1752949843960,-155.57458364,0.00018515,2]
[373332875,1752949843971,-420.0,0.00018567,2]
[373332876,1752949843980,-150.0,0.00018645,2]
[373332877,1752949843991,-150.0,0.00018645,2]
[373332878,1752949844004,-200.88074046,0.0001865,2]
[373332879,1752949844013,-1680.0,0.00018659,2]
[373332880,1752949844023,-504.0,0.00018692,2]
[373332881,1752949844033,-300.0,0.000187,2]
[373332882,1752949844044,-150.0,0.000187,2]
[373332883,1752949844055,-150.0,0.000187,2]
[373332884,1752949844064,-575.25675372,0.00018779,2]
[373332885,1752949844075,-150.0,0.0001878,2]
[373332886,1752949844085,-150.0,0.00018784,2]
[373332887,1752949844094,-200.88074046,0.000188,2]
[373332888,1752949844104,-155.57458364,0.00018868,2]
[373332889,1752949844113,-168.91,0.00018895,2]
[373332890,1752949844123,-159.17427138,0.000189,2]
[373332891,1752949844134,-150.0,0.00018923,2]
[373332892,1752949844144,-150.0,0.00018923,2]
[373332893,1752949844154,-200.88074046,0.0001895,2]
[373332894,1752949844163,-150.0,0.00019062,2]
[373332895,1752949844172,-150.0,0.0001909,2]
[373332896,1752949844182,-150.0,0.0001909,2]
[373332897,1752949844191,-200.88074046,0.000191,2]
[373332898,1752949844200,-575.25675372,0.00019123,2]
[373332899,1752949844209,-7142.856,0.00019166,2]
[373332900,1752949844218,-207.4,0.00019166,2]
[373332901,1752949844227,-867.682,0.00019167,2]
[373332902,1752949844237,-2434.564,0.00019167,2]
[373332903,1752949844246,-871.869,0.00019167,2]
[373332904,1752949844256,-220.9,0.00019168,2]
[373332905,1752949844265,-480.0,0.00019178,2]
[373332906,1752949844275,-480.0,0.00019178,2]
[373332907,1752949844284,-480.0,0.00019178,2]
[373332908,1752949844293,-480.0,0.00019178,2]
[373332909,1752949844303,-480.0,0.00019178,2]
[373332910,1752949844312,-480.0,0.00019178,2]
[373332911,1752949844321,-480.0,0.00019178,2]
[373332912,1752949844331,-480.0,0.00019178,2]
[373332913,1752949844339,-480.0,0.00019178,2]
[373332914,1752949844349,-480.0,0.00019178,2]
[373332915,1752949844358,-460.0,0.00019178,2]
[373332916,1752949844367,-460.0,0.00019178,2]
[373332917,1752949844376,-480.0,0.00019178,2]
[373332918,1752949844385,-460.0,0.00019178,2]
[373332919,1752949844394,-480.0,0.00019178,2]
[373332920,1752949844404,-480.0,0.00019178,2]
[373332921,1752949844413,-480.0,0.00019178,2]
[373332922,1752949844423,-460.0,0.00019178,2]
[373332923,1752949844432,-480.0,0.00019178,2]
[373332924,1752949844441,-480.0,0.00019178,2]
[373332925,1752949844451,-480.0,0.00019178,2]
[373332926,1752949844460,-480.0,0.00019178,2]
[373332927,1752949844470,-460.0,0.00019178,2]
[373332928,1752949844479,-480.0,0.00019178,2]
[373332929,1752949844488,-480.0,0.00019178,2]
[373332930,1752949844497,-480.0,0.00019178,2]
[373332931,1752949844507,-480.0,0.00019178,2]
[373332932,1752949844518,-551.08,0.00019178,2]
[373332933,1752949844527,-480.0,0.00019178,2]
[373332934,1752949844537,-480.0,0.00019178,2]
[373332935,1752949844547,-480.0,0.00019178,2]
[373332936,1752949844557,-568.75,0.00019178,2]
[373332937,1752949844567,-480.0,0.00019178,2]
[373332938,1752949844576,-480.0,0.00019178,2]
[373332939,1752949844585,-480.0,0.00019178,2]
[373332940,1752949844594,-480.0,0.00019178,2]
[373332941,1752949844603,-480.0,0.00019178,2]
[373332942,1752949844614,-480.0,0.00019178,2]
[373332943,1752949844624,-480.0,0.00019178,2]
[373332944,1752949844634,-480.0,0.00019178,2]
[373332945,1752949844644,-480.0,0.00019178,2]
[373332946,1752949844654,-480.0,0.00019178,2]
[373332947,1752949844663,-480.0,0.00019178,2]
[373332948,1752949844672,-480.0,0.00019178,2]
[373332949,1752949844681,-480.0,0.00019178,2]
[373332950,1752949844691,-480.0,0.00019178,2]
[373332951,1752949844701,-480.0,0.00019178,2]
[373332952,1752949844712,-882.85,0.00019178,2]
[373332953,1752949844722,-480.0,0.00019178,2]
[373332954,1752949844732,-480.0,0.00019178,2]
[373332955,1752949844742,-480.0,0.00019178,2]
[373332956,1752949844752,-480.0,0.00019178,2]
[373332957,1752949844762,-505.56,0.00019178,2]
[373332958,1752949844772,-480.0,0.00019178,2]
[373332959,1752949844783,-480.0,0.00019178,2]
[373332960,1752949844793,-480.0,0.00019178,2]
[373332961,1752949844803,-480.0,0.00019178,2]
[373332962,1752949844814,-480.0,0.00019178,2]
[373332963,1752949844824,-480.0,0.00019178,2]
[373332964,1752949844834,-480.0,0.00019178,2]
[373332965,1752949844843,-480.0,0.00019178,2]
[373332966,1752949844853,-480.0,0.00019178,2]
[373332967,1752949844864,-480.0,0.00019178,2]
[373332968,1752949844875,-480.0,0.00019178,2]
[373332969,1752949844886,-480.0,0.00019178,2]
[373332970,1752949844896,-480.0,0.00019178,2]
[373332971,1752949844907,-480.0,0.00019178,2]
[373332972,1752949844916,-480.0,0.00019178,2]
[373332973,1752949844926,-480.0,0.00019178,2]
[373332974,1752949844937,-480.0,0.00019178,2]
[373332975,1752949844948,-480.0,0.00019178,2]
[373332976,1752949844959,-480.0,0.00019178,2]
[373332977,1752949844969,-480.0,0.00019178,2]
[373332978,1752949844979,-480.0,0.00019178,2]
[373332979,1752949844988,-480.0,0.00019178,2]
[373332980,1752949845002,-480.0,0.00019178,2]
[373332981,1752949845012,-480.0,0.00019178,2]
[373332982,1752949845021,-480.0,0.00019178,2]
[373332983,1752949845031,-480.0,0.00019178,2]
[373332984,1752949845042,-480.0,0.00019178,2]
[373332985,1752949845051,-480.0,0.00019178,2]
[373332986,1752949845062,-480.0,0.00019178,2]
[373332987,1752949845075,-480.0,0.00019178,2]
[373332988,1752949845086,-480.0,0.00019178,2]
[373332989,1752949845096,-480.0,0.00019178,2]
[373332990,1752949845106,-480.0,0.00019178,2]
[373332991,1752949845116,-480.0,0.00019178,2]
[373332992,1752949845127,-480.0,0.00019178,2]
[373332993,1752949845136,-480.0,0.00019178,2]
[373332994,1752949845146,-504.95,0.00019178,2]
[373332995,1752949845156,-480.0,0.00019178,2]
[373332996,1752949845167,-1386.03,0.00019178,2]
[373332997,1752949845177,-480.0,0.00019178,2]
[373332998,1752949845186,-480.0,0.00019178,2]
[373332999,1752949845195,-480.0,0.00019178,2]
[373333000,1752949845207,-480.0,0.00019178,2]
[373333001,1752949845216,-480.0,0.00019178,2]
[373333002,1752949845226,-480.0,0.00019178,2]
[373333003,1752949845235,-480.0,0.00019178,2]
[373333004,1752949845245,-480.0,0.00019178,2]
[373333005,1752949845255,-480.0,0.00019178,2]
[373333006,1752949845264,-480.0,0.00019178,2]
[373333007,1752949845274,-1223.31,0.00019178,2]
[373333008,1752949845284,-577.39,0.00019178,2]
[373333009,1752949845293,-909.78,0.00019178,2]
[373333010,1752949845302,-480.0,0.00019178,2]
[373333011,1752949845312,-641.83,0.00019178,2]
[373333012,1752949845322,-480.0,0.00019178,2]
[373333013,1752949845332,-544.23,0.00019178,2]
[373333014,1752949845341,-480.0,0.00019178,2]
[373333015,1752949845350,-4610.88,0.00019178,2]
[373333016,1752949845360,-480.0,0.00019178,2]
[373333017,1752949845370,-480.0,0.00019178,2]
[373333018,1752949845379,-480.0,0.00019178,2]
[373333019,1752949845389,-480.0,0.00019178,2]
[373333020,1752949845399,-572.23,0.00019178,2]
[373333021,1752949845409,-992.66,0.00019178,2]
[373333022,1752949845419,-480.0,0.00019178,2]
[373333023,1752949845428,-480.0,0.00019178,2]
[373333024,1752949845437,-758.47,0.00019178,2]
[373333025,1752949845447,-976.88,0.00019178,2]
[373333026,1752949845456,-587.04,0.00019178,2]
[373333027,1752949845465,-923.95,0.00019178,2]
[373333028,1752949845474,-480.0,0.00019178,2]
[373333029,1752949845483,-480.0,0.00019178,2]
[373333030,1752949845492,-3417.08,0.00019178,2]
[373333031,1752949845502,-1139.72,0.00019178,2]
[373333032,1752949845511,-480.0,0.00019178,2]
[373333033,1752949845520,-858.82,0.00019178,2]
[373333034,1752949845529,-766.11,0.00019178,2]
[373333035,1752949845539,-480.0,0.00019178,2]
[373333036,1752949845549,-480.0,0.00019178,2]
[373333037,1752949845559,-500.0,0.00019178,2]
[373333038,1752949845568,-500.0,0.00019178,2]
[373333039,1752949845577,-919.11,0.00019178,2]
[373333040,1752949845586,-4030.86,0.00019178,2]
[373333041,1752949845595,-838.42,0.00019178,2]
[373333042,1752949845605,-1119.96,0.00019178,2]
[373333043,1752949845615,-480.0,0.00019178,2]
[373333044,1752949845626,-480.0,0.00019178,2]
[373333045,1752949845636,-480.0,0.00019178,2]
[373333046,1752949845646,-480.0,0.00019178,2]
[373333047,1752949845656,-1022.7,0.00019178,2]
[373333048,1752949845665,-682.21,0.00019178,2]
[373333049,1752949845675,-480.0,0.00019178,2]
[373333050,1752949845684,-714.5,0.00019178,2]
[373333051,1752949845693,-480.0,0.00019178,2]
[373333052,1752949845703,-942.08,0.00019178,2]
[373333053,1752949845711,-480.0,0.00019178,2]
[373333054,1752949845721,-460.0,0.00019178,2]
[373333055,1752949845730,-1922.28,0.00019178,2]
[373333056,1752949845740,-480.0,0.00019178,2]
[373333057,1752949845750,-480.0,0.00019178,2]
[373333058,1752949845760,-460.0,0.00019178,2]
[373333059,1752949845770,-480.0,0.00019178,2]
[373333060,1752949845779,-657.64,0.00019178,2]
[373333061,1752949845789,-2606.21,0.00019178,2]
[373333062,1752949845800,-1024.24,0.00019178,2]
[373333063,1752949845809,-23719.91,0.00019178,2]
[373333064,1752949845818,-480.0,0.00019178,2]
[373333065,1752949845827,-480.0,0.00019178,2]
[373333066,1752949845837,-480.0,0.00019178,2]
[373333067,1752949845847,-480.0,0.00019178,2]
[373333068,1752949845858,-480.0,0.00019178,2]
[373333069,1752949845867,-480.0,0.00019178,2]
[373333070,1752949845878,-3308.35,0.00019178,2]
[373333071,1752949845889,-977.0,0.00019178,2]
[373333072,1752949845899,-3422.43,0.00019178,2]
[373333073,1752949845909,-480.0,0.00019178,2]
[373333074,1752949845918,-480.0,0.00019178,2]
[373333075,1752949845929,-749.46,0.00019178,2]
[373333076,1752949845940,-480.0,0.00019178,2]
[373333077,1752949845950,-480.0,0.00019178,2]
[373333078,1752949845960,-480.0,0.00019178,2]
[373333079,1752949845969,-480.0,0.00019178,2]
[373333081,1752949845979,-357.40020533,0.00019178,2]
[373333082,1752949845989,-480.0,0.00019178,2]
[373333083,1752949846001,-567.16210907,0.00019178,2]
[373333084,1752949846010,-480.0,0.00019178,2]
[373333085,1752949846019,-303.42653671,0.00019178,2]
[373333086,1752949846029,-480.0,0.00019178,2]
[373333087,1752949846039,-460.0,0.00019178,2]
[373333088,1752949846048,-480.0,0.00019178,2]
[373333089,1752949846057,-500.0,0.00019178,2]
[373333090,1752949846067,-1250.93,0.00019178,2]
[373333091,1752949846076,-460.0,0.00019178,2]
[373333092,1752949846085,-480.0,0.00019178,2]
[373333093,1752949846095,-487.84979212,0.00019178,2]
[373333094,1752949846103,-480.0,0.00019178,2]
[373333095,1752949846112,-1396.46,0.00019178,2]
[373333096,1752949846122,-460.0,0.00019178,2]
[373333097,1752949846131,-480.0,0.00019178,2]
[373333098,1752949846140,-480.0,0.00019178,2]
[373333099,1752949846149,-480.0,0.00019178,2]
[373333100,1752949846159,-643.92,0.00019178,2]
[373333101,1752949846168,-480.0,0.00019178,2]
[373333102,1752949846177,-752.89,0.00019178,2]
[373333103,1752949846187,-700.87,0.00019178,2]
[373333104,1752949846197,-480.0,0.00019178,2]
[373333105,1752949846207,-815.51,0.00019178,2]
[373333106,1752949846216,-480.0,0.00019178,2]
[373333107,1752949846225,-460.0,0.00019178,2]
[373333108,1752949846235,-480.0,0.00019178,2]
[373333109,1752949846244,-480.0,0.00019178,2]
[373333110,1752949846253,-699.01,0.00019178,2]
[373333111,1752949846263,-507.67,0.00019178,2]
[373333112,1752949846272,-480.0,0.00019178,2]
[373333113,1752949846281,-460.0,0.00019178,2]
[373333114,1752949846291,-480.0,0.00019178,2]
[373333115,1752949846300,-1173.13,0.00019178,2]
[373333116,1752949846310,-480.0,0.00019178,2]
[373333117,1752949846320,-480.0,0.00019178,2]
[373333118,1752949846329,-480.0,0.00019178,2]
[373333119,1752949846339,-500.0,0.00019178,2]
[373333120,1752949846349,-480.0,0.00019178,2]
[373333121,1752949846359,-500.0,0.00019178,2]
[373333122,1752949846369,-1325.5,0.00019178,2]
[373333123,1752949846378,-480.0,0.00019178,2]
[373333124,1752949846387,-5726.8,0.00019178,2]
[373333125,1752949846397,-480.0,0.00019178,2]
[373333126,1752949846407,-480.0,0.00019178,2]
[373333127,1752949846416,-1065.38,0.00019178,2]
[373333128,1752949846426,-460.0,0.00019178,2]
[373333129,1752949846435,-480.0,0.00019178,2]
[373333130,1752949846445,-480.0,0.00019178,2]
[373333131,1752949846454,-576.46,0.00019178,2]
[373333132,1752949846463,-460.0,0.00019178,2]
[373333133,1752949846473,-480.0,0.00019178,2]
[373333134,1752949846482,-480.0,0.00019178,2]
[373333135,1752949846492,-480.0,0.00019178,2]
[373333136,1752949846501,-199.6,0.00019178,2]
[373333137,1752949846510,-480.0,0.00019178,2]
[373333138,1752949846521,-480.0,0.00019178,2]
[373333139,1752949846531,-480.0,0.00019178,2]
[373333140,1752949846540,-480.0,0.00019178,2]
[373333141,1752949846549,-480.0,0.00019178,2]
[373333142,1752949846559,-268.36016497,0.00019178,2]
[373333143,1752949846569,-734.97,0.00019178,2]
[373333144,1752949846578,-480.0,0.00019178,2]
[373333145,1752949846589,-460.0,0.00019178,2]
[373333146,1752949846599,-480.0,0.00019178,2]
[373333147,1752949846609,-480.0,0.00019178,2]
[373333148,1752949846619,-480.0,0.00019178,2]
[373333149,1752949846629,-480.0,0.00019178,2]
[373333150,1752949846638,-480.0,0.00019178,2]
[373333151,1752949846647,-565.04,0.00019178,2]
[373333152,1752949846659,-480.0,0.00019178,2]
[373333153,1752949846668,-480.0,0.00019178,2]
[373333154,1752949846677,-480.0,0.00019178,2]
[373333155,1752949846687,-480.0,0.00019178,2]
[373333156,1752949846696,-480.0,0.00019178,2]
[373333157,1752949846706,-495.84,0.00019178,2]
[373333158,1752949846715,-480.0,0.00019178,2]
[373333159,1752949846724,-480.0,0.00019178,2]
[373333160,1752949846733,-480.0,0.00019178,2]
[373333161,1752949846743,-480.0,0.00019178,2]
[373333162,1752949846752,-480.0,0.00019178,2]
[373333163,1752949846761,-151.0,0.00019178,2]
[373333164,1752949846770,-543.01104,0.0001918,2]
[373333165,1752949846780,-2500.0,0.00019186,2]
[373333166,1752949846790,-5000.0,0.00019187,2]
[373333167,1752949846802,-150.0,0.00019201,4]
[373333168,1752949846811,-150.0,0.00019201,4]
[373333169,1752949846821,-194.0,0.00019216,2]
[373333170,1752949846831,-155.57458364,0.00019222,2]
[373333171,1752949846841,-3527.30496048,0.00019249,2]
[373333172,1752949846851,-200.88074046,0.0001925,2]
[373333173,1752949846861,-150.0,0.00019258,2]
[373333174,1752949846871,-500.0,0.00019273,2]
[373333175,1752949846882,-460.0,0.00019275,2]
[373333176,1752949846892,-620.59,0.00019275,2]
[373333177,1752949846901,-480.0,0.00019275,2]
[373333178,1752949846911,-792.6,0.00019275,2]